[Event "Early-Titled-Tuesday-Blitz-August-29-2023"]
[Site "Chess.com"]
[Date "2023.08.29"]
[Round "8"]
[White "regular_legs"]
[Black "AleksandraMilovic"]
[Result "1-0"]
[WhiteElo "2570"]
[BlackElo "2131"]
[TimeControl "180+1"]
[EndTime "9:24:36 PDT"]
[Termination "regular_legs won by resignation"]

1. e4 {[%clk 0:02:57]} 1... e5 {[%clk 0:02:58.7]} 2. Nf3 {[%clk 0:02:57]} 2...
Nf6 {[%clk 0:02:58.2]} 3. Nxe5 {[%clk 0:02:52.7]} 3... d6 {[%clk 0:02:58.2]} 4.
Nd3 {[%clk 0:02:53]} 4... Nxe4 {[%clk 0:02:57.6]} 5. Qe2 {[%clk 0:02:53.3]} 5...
Qe7 {[%clk 0:02:57.1]} 6. Nf4 {[%clk 0:02:53.9]} 6... Nf6 {[%clk 0:02:56.7]} 7.
d4 {[%clk 0:02:53]} 7... d5 {[%clk 0:02:55.2]} 8. Nc3 {[%clk 0:02:46.5]} 8... c6
{[%clk 0:02:54.3]} 9. f3 {[%clk 0:02:46.8]} 9... Qxe2+ {[%clk 0:02:49.2]} 10.
Bxe2 {[%clk 0:02:46.4]} 10... Bf5 {[%clk 0:02:49.5]} 11. Bd3 {[%clk 0:02:45.6]}
11... Bxd3 {[%clk 0:02:49.1]} 12. Nxd3 {[%clk 0:02:46.5]} 12... Nbd7 {[%clk
0:02:47.3]} 13. g4 {[%clk 0:02:45.7]} 13... Bd6 {[%clk 0:02:47.2]} 14. Kf2
{[%clk 0:02:45.3]} 14... O-O-O {[%clk 0:02:44]} 15. h4 {[%clk 0:02:44.9]} 15...
h5 {[%clk 0:02:34.5]} 16. g5 {[%clk 0:02:44.1]} 16... Ne8 {[%clk 0:02:35.1]} 17.
Bf4 {[%clk 0:02:43.2]} 17... g6 {[%clk 0:02:33]} 18. Rae1 {[%clk 0:02:37.7]}
18... Bxf4 {[%clk 0:02:30.9]} 19. Nxf4 {[%clk 0:02:37.3]} 19... Nd6 {[%clk
0:02:27.5]} 20. Nce2 {[%clk 0:02:35.6]} 20... Nf5 {[%clk 0:02:26.7]} 21. c3
{[%clk 0:02:35.2]} 21... Rde8 {[%clk 0:02:26.7]} 22. Ng3 {[%clk 0:02:24.7]}
22... Nxg3 {[%clk 0:02:16]} 23. Kxg3 {[%clk 0:02:20.6]} 23... Kc7 {[%clk
0:02:14.5]} 24. Nd3 {[%clk 0:02:17.3]} 24... Kd6 {[%clk 0:02:14.1]} 25. f4
{[%clk 0:02:13.1]} 25... Re4 {[%clk 0:01:59.6]} 26. Ne5 {[%clk 0:01:54.2]} 26...
Nxe5 {[%clk 0:01:57.3]} 27. fxe5+ {[%clk 0:01:53.6]} 27... Ke6 {[%clk
0:01:55.7]} 28. Rxe4 {[%clk 0:01:35.7]} 28... dxe4 {[%clk 0:01:56.5]} 29. Rf1
{[%clk 0:01:36]} 29... Rf8 {[%clk 0:01:50.3]} 30. Rf6+ {[%clk 0:01:33.6]} 30...
Kd5 {[%clk 0:01:50.3]} 31. Kf4 {[%clk 0:01:30.7]} 31... b5 {[%clk 0:01:46.9]}
32. Rd6+ {[%clk 0:01:27.5]} 32... Kc4 {[%clk 0:01:46.6]} 33. Kxe4 {[%clk
0:01:27.6]} 33... Rc8 {[%clk 0:01:46.1]} 34. Rd7 {[%clk 0:01:22.4]} 34... a5
{[%clk 0:01:41]} 35. Rxf7 {[%clk 0:01:20.4]} 35... c5 {[%clk 0:01:41]} 36. e6
{[%clk 0:01:19.3]} 36... b4 {[%clk 0:01:41.5]} 37. e7 {[%clk 0:01:18]} 37... Re8
{[%clk 0:01:39.5]} 38. d5 {[%clk 0:01:17.4]} 38... Kb5 {[%clk 0:01:38.4]} 39.
c4+ {[%clk 0:01:14.9]} 39... Kb6 {[%clk 0:01:36]} 40. Ke5 {[%clk 0:01:13.4]}
40... Kc7 {[%clk 0:01:36.4]} 41. Ke6 {[%clk 0:01:13.4]} 41... a4 {[%clk
0:01:35.6]} 1-0

[Event "Early-Titled-Tuesday-Blitz-August-29-2023"]
[Site "Chess.com"]
[Date "2023.08.29"]
[Round "8"]
[White "Rosh1610"]
[Black "AlejandroArias"]
[Result "1-0"]
[WhiteElo "2446"]
[BlackElo "2319"]
[TimeControl "180+1"]
[EndTime "9:24:55 PDT"]
[Termination "Rosh1610 won on time"]

1. e4 {[%clk 0:03:00.9]} 1... c5 {[%clk 0:02:59.5]} 2. Nc3 {[%clk 0:03:00.7]}
2... Nc6 {[%clk 0:02:58.8]} 3. f4 {[%clk 0:02:58.3]} 3... g6 {[%clk 0:02:57.6]}
4. Nf3 {[%clk 0:02:58.2]} 4... Bg7 {[%clk 0:02:57.5]} 5. a4 {[%clk 0:02:59.1]}
5... e6 {[%clk 0:02:51.1]} 6. Bb5 {[%clk 0:02:57.2]} 6... Nge7 {[%clk
0:02:46.7]} 7. e5 {[%clk 0:02:57.3]} 7... d6 {[%clk 0:02:30.4]} 8. Ne4 {[%clk
0:02:56.7]} 8... dxe5 {[%clk 0:02:23.3]} 9. fxe5 {[%clk 0:02:57.6]} 9... O-O
{[%clk 0:01:59.6]} 10. Nf6+ {[%clk 0:02:56.6]} 10... Kh8 {[%clk 0:01:49.1]} 11.
d4 {[%clk 0:02:49.1]} 11... cxd4 {[%clk 0:01:43.7]} 12. Bg5 {[%clk 0:02:48.2]}
12... Qa5+ {[%clk 0:01:23.4]} 13. Kf2 {[%clk 0:02:47.1]} 13... a6 {[%clk
0:01:22.2]} 14. h4 {[%clk 0:02:45.2]} 14... h5 {[%clk 0:00:52.9]} 15. g4 {[%clk
0:02:12.1]} 15... axb5 {[%clk 0:00:37.3]} 16. gxh5 {[%clk 0:02:11.3]} 16... Qc7
{[%clk 0:00:09]} 17. hxg6 {[%clk 0:02:02.9]} 17... fxg6 {[%clk 0:00:09.9]} 18.
h5 {[%clk 0:02:02.3]} 18... Bxf6 {[%clk 0:00:05.9]} 19. Bxf6+ {[%clk 0:02:02]}
19... Kg8 {[%clk 0:00:03.8]} 20. h6 {[%clk 0:01:56.7]} 20... Nxe5 {[%clk
0:00:01.5]} 21. h7+ {[%clk 0:01:52.9]} 21... Kf7 {[%clk 0:00:01.7]} 22. Bxe5
{[%clk 0:01:51.8]} 22... Ke8 {[%clk 0:00:01.3]} 23. Bxc7 {[%clk 0:01:51.1]} 1-0

[Event "Early-Titled-Tuesday-Blitz-August-29-2023"]
[Site "Chess.com"]
[Date "2023.08.29"]
[Round "8"]
[White "AnaKuchava"]
[Black "YellowJacek"]
[Result "1-0"]
[WhiteElo "2212"]
[BlackElo "2342"]
[TimeControl "180+1"]
[EndTime "9:24:59 PDT"]
[Termination "AnaKuchava won by resignation"]

1. d4 {[%clk 0:03:00.9]} 1... d5 {[%clk 0:02:56.7]} 2. Nf3 {[%clk 0:02:59.5]}
2... Nf6 {[%clk 0:02:56.5]} 3. c4 {[%clk 0:02:57.1]} 3... c6 {[%clk 0:02:56.7]}
4. Qb3 {[%clk 0:02:54.2]} 4... dxc4 {[%clk 0:02:56.1]} 5. Qxc4 {[%clk
0:02:55.1]} 5... Be6 {[%clk 0:02:55.7]} 6. Qc2 {[%clk 0:02:49.2]} 6... g6 {[%clk
0:02:54.4]} 7. g3 {[%clk 0:02:48.4]} 7... Bg7 {[%clk 0:02:54.5]} 8. Bg2 {[%clk
0:02:48.8]} 8... O-O {[%clk 0:02:54.5]} 9. O-O {[%clk 0:02:48.5]} 9... Bf5
{[%clk 0:02:53.6]} 10. Qb3 {[%clk 0:02:48.4]} 10... Qb6 {[%clk 0:02:53.6]} 11.
Qxb6 {[%clk 0:02:47.6]} 11... axb6 {[%clk 0:02:54.5]} 12. Nc3 {[%clk 0:02:45.3]}
12... b5 {[%clk 0:02:50.9]} 13. b4 {[%clk 0:02:29.2]} 13... Nbd7 {[%clk
0:02:40.2]} 14. a4 {[%clk 0:02:26.8]} 14... Nb6 {[%clk 0:02:34.7]} 15. a5 {[%clk
0:02:18.3]} 15... Nbd5 {[%clk 0:02:34.6]} 16. Nxd5 {[%clk 0:02:12.3]} 16... Nxd5
{[%clk 0:02:35.5]} 17. Bd2 {[%clk 0:02:12.5]} 17... Be4 {[%clk 0:02:34.5]} 18.
e3 {[%clk 0:02:10.4]} 18... Rfd8 {[%clk 0:02:29.2]} 19. Rfc1 {[%clk 0:02:08.9]}
19... Ra6 {[%clk 0:02:29]} 20. Ne1 {[%clk 0:02:00.1]} 20... Bxg2 {[%clk
0:02:27.4]} 21. Kxg2 {[%clk 0:02:01]} 21... e6 {[%clk 0:02:26.8]} 22. Nd3 {[%clk
0:01:53.1]} 22... Bf8 {[%clk 0:02:26.4]} 23. Rd1 {[%clk 0:01:06.8]} 23... Rda8
{[%clk 0:02:20.2]} 24. Nc5 {[%clk 0:01:06.8]} 24... Bxc5 {[%clk 0:02:20]} 25.
dxc5 {[%clk 0:01:07.7]} 25... Rd8 {[%clk 0:02:14.8]} 26. e4 {[%clk 0:01:06]}
26... Nc7 {[%clk 0:01:45.4]} 27. Bf4 {[%clk 0:01:01.3]} 27... Rxd1 {[%clk
0:01:26.9]} 28. Rxd1 {[%clk 0:01:02.2]} 28... Na8 {[%clk 0:01:19.3]} 29. Bh6
{[%clk 0:00:57.2]} 29... f6 {[%clk 0:01:19.6]} 30. Rd7 {[%clk 0:00:52.3]} 30...
Ra7 {[%clk 0:01:16.4]} 31. Rg7+ {[%clk 0:00:47.9]} 31... Kh8 {[%clk 0:01:16.8]}
32. Re7 {[%clk 0:00:46]} 1-0

[Event "Early-Titled-Tuesday-Blitz-August-29-2023"]
[Site "Chess.com"]
[Date "2023.08.29"]
[Round "8"]
[White "Goryachkina"]
[Black "NovozhilovSemen"]
[Result "1/2-1/2"]
[WhiteElo "2644"]
[BlackElo "2527"]
[TimeControl "180+1"]
[EndTime "9:25:11 PDT"]
[Termination "Game drawn by agreement"]

1. e4 {[%clk 0:02:59.7]} 1... c5 {[%clk 0:02:59.4]} 2. Nf3 {[%clk 0:02:59.7]}
2... Nc6 {[%clk 0:02:59.4]} 3. Bb5 {[%clk 0:02:59.1]} 3... g6 {[%clk 0:02:59.4]}
4. O-O {[%clk 0:02:57.4]} 4... Bg7 {[%clk 0:02:59.8]} 5. Re1 {[%clk 0:02:57.2]}
5... Nf6 {[%clk 0:03:00]} 6. c3 {[%clk 0:02:50.8]} 6... O-O {[%clk 0:02:59.3]}
7. d4 {[%clk 0:02:49.7]} 7... d5 {[%clk 0:02:58.1]} 8. e5 {[%clk 0:02:49.6]}
8... Ne4 {[%clk 0:02:58.4]} 9. h3 {[%clk 0:02:47.7]} 9... h5 {[%clk 0:02:53.2]}
10. Nbd2 {[%clk 0:02:29.1]} 10... Nxd2 {[%clk 0:02:51.5]} 11. Bxd2 {[%clk
0:02:25.3]} 11... Qb6 {[%clk 0:02:51.7]} 12. Bxc6 {[%clk 0:02:18.6]} 12... bxc6
{[%clk 0:02:52.6]} 13. Qc1 {[%clk 0:02:16.2]} 13... c4 {[%clk 0:02:52.1]} 14.
Bg5 {[%clk 0:02:03.8]} 14... Re8 {[%clk 0:02:49.9]} 15. Re2 {[%clk 0:01:56]}
15... Bf5 {[%clk 0:02:47.4]} 16. Qd2 {[%clk 0:01:50.8]} 16... a5 {[%clk
0:02:47.1]} 17. Rae1 {[%clk 0:01:39.2]} 17... a4 {[%clk 0:02:46.4]} 18. a3
{[%clk 0:01:32.1]} 18... Bd3 {[%clk 0:02:44.6]} 19. Bh6 {[%clk 0:01:03.7]} 19...
Bxe2 {[%clk 0:02:43.3]} 20. Rxe2 {[%clk 0:01:03.7]} 20... Qb3 {[%clk 0:02:34.7]}
21. Kh2 {[%clk 0:01:00.8]} 21... Rab8 {[%clk 0:02:31.5]} 22. Bxg7 {[%clk
0:00:32.2]} 22... Kxg7 {[%clk 0:02:30.3]} 23. Nh4 {[%clk 0:00:29.3]} 23... f6
{[%clk 0:02:04.5]} 24. Qe3 {[%clk 0:00:25.5]} 24... Qd1 {[%clk 0:02:00]} 25. Qg3
{[%clk 0:00:25]} 25... Qd3 {[%clk 0:01:43.4]} 26. Re3 {[%clk 0:00:21.2]} 26...
Qc2 {[%clk 0:01:43.5]} 27. Re2 {[%clk 0:00:12.3]} 27... Qb1 {[%clk 0:01:42.9]}
28. Re1 {[%clk 0:00:11.5]} 28... Qc2 {[%clk 0:01:43.2]} 29. Re2 {[%clk
0:00:11.8]} 29... Qd3 {[%clk 0:01:43.4]} 30. Re3 {[%clk 0:00:12.2]} 1/2-1/2

[Event "Early-Titled-Tuesday-Blitz-August-29-2023"]
[Site "Chess.com"]
[Date "2023.08.29"]
[Round "8"]
[White "realburq"]
[Black "zurzan"]
[Result "1-0"]
[WhiteElo "2388"]
[BlackElo "2082"]
[TimeControl "180+1"]
[EndTime "9:25:18 PDT"]
[Termination "realburq won by checkmate"]

1. e4 {[%clk 0:03:00.9]} 1... g6 {[%clk 0:03:00.9]} 2. d4 {[%clk 0:03:00.7]}
2... Bg7 {[%clk 0:03:01.8]} 3. h4 {[%clk 0:03:01.3]} 3... h5 {[%clk 0:03:00.3]}
4. Nc3 {[%clk 0:03:00.9]} 4... c6 {[%clk 0:03:00.5]} 5. Bc4 {[%clk 0:02:58.1]}
5... b5 {[%clk 0:02:58.1]} 6. Bb3 {[%clk 0:02:56.7]} 6... b4 {[%clk 0:02:57.9]}
7. Nce2 {[%clk 0:02:54.1]} 7... Nf6 {[%clk 0:02:57.4]} 8. Ng3 {[%clk 0:02:48]}
8... d5 {[%clk 0:02:53.8]} 9. e5 {[%clk 0:02:44.6]} 9... Ng4 {[%clk 0:02:53.6]}
10. Nf3 {[%clk 0:02:35.6]} 10... O-O {[%clk 0:02:50.3]} 11. Ng5 {[%clk
0:02:35.7]} 11... f6 {[%clk 0:02:46.9]} 12. exf6 {[%clk 0:02:15.2]} 12... exf6
{[%clk 0:02:46.9]} 13. Nf3 {[%clk 0:02:14.2]} 13... Re8+ {[%clk 0:02:45.9]} 14.
Kf1 {[%clk 0:02:12.7]} 14... a5 {[%clk 0:02:40.1]} 15. a4 {[%clk 0:02:12.2]}
15... Ba6+ {[%clk 0:02:35.9]} 16. Kg1 {[%clk 0:02:12.6]} 16... Nd7 {[%clk
0:02:33]} 17. Bf4 {[%clk 0:02:03]} 17... Rc8 {[%clk 0:02:21.3]} 18. Qd2 {[%clk
0:02:01.2]} 18... Qb6 {[%clk 0:02:09.9]} 19. Nh2 {[%clk 0:01:56.6]} 19... f5
{[%clk 0:01:57.8]} 20. Nxg4 {[%clk 0:01:56.1]} 20... fxg4 {[%clk 0:01:57.2]} 21.
Rd1 {[%clk 0:01:43.1]} 21... Nf6 {[%clk 0:01:56.4]} 22. Bh6 {[%clk 0:01:41.2]}
22... Bh8 {[%clk 0:01:52.5]} 23. Qg5 {[%clk 0:01:38.4]} 23... Kh7 {[%clk
0:01:44.8]} 24. Kh2 {[%clk 0:01:12]} 24... Qc7 {[%clk 0:01:44.3]} 25. Rhe1
{[%clk 0:01:07.6]} 25... Ne4 {[%clk 0:01:42]} 26. Rxe4 {[%clk 0:01:01.3]} 26...
dxe4 {[%clk 0:01:39.3]} 27. Kh1 {[%clk 0:00:53.3]} 27... e3 {[%clk 0:01:34.6]}
28. Nxh5 {[%clk 0:00:49.9]} 28... gxh5 {[%clk 0:01:25.2]} 29. Qxh5 {[%clk
0:00:49.8]} 29... Qd7 {[%clk 0:00:59.8]} 30. Bf8# {[%clk 0:00:40.1]} 1-0

[Event "Early-Titled-Tuesday-Blitz-August-29-2023"]
[Site "Chess.com"]
[Date "2023.08.29"]
[Round "8"]
[White "chess123456s"]
[Black "averageFM"]
[Result "0-1"]
[WhiteElo "2634"]
[BlackElo "2533"]
[TimeControl "180+1"]
[EndTime "9:25:27 PDT"]
[Termination "averageFM won by resignation"]

1. e4 {[%clk 0:02:54.7]} 1... c5 {[%clk 0:02:55.2]} 2. Nf3 {[%clk 0:02:54.1]}
2... e6 {[%clk 0:02:55.5]} 3. d4 {[%clk 0:02:53.4]} 3... cxd4 {[%clk 0:02:56.4]}
4. Nxd4 {[%clk 0:02:54]} 4... Nc6 {[%clk 0:02:56.9]} 5. Nc3 {[%clk 0:02:54.5]}
5... Qc7 {[%clk 0:02:57]} 6. Be3 {[%clk 0:02:55.1]} 6... a6 {[%clk 0:02:57.2]}
7. Qf3 {[%clk 0:02:55.6]} 7... Nf6 {[%clk 0:02:53.4]} 8. O-O-O {[%clk
0:02:55.5]} 8... h5 {[%clk 0:02:50.3]} 9. h3 {[%clk 0:02:50.4]} 9... Ne5 {[%clk
0:02:46.2]} 10. Qg3 {[%clk 0:02:40.1]} 10... h4 {[%clk 0:02:45.5]} 11. Qh2
{[%clk 0:02:38.6]} 11... b5 {[%clk 0:02:40]} 12. Bf4 {[%clk 0:02:37.5]} 12... d6
{[%clk 0:02:38.3]} 13. a3 {[%clk 0:02:28.6]} 13... Bb7 {[%clk 0:02:35]} 14. f3
{[%clk 0:02:16.4]} 14... Rc8 {[%clk 0:02:34.9]} 15. g3 {[%clk 0:02:12.6]} 15...
Nh5 {[%clk 0:02:22.3]} 16. g4 {[%clk 0:01:57.3]} 16... Nxf4 {[%clk 0:02:17.5]}
17. Qxf4 {[%clk 0:01:58.2]} 17... d5 {[%clk 0:02:15.4]} 18. Kb1 {[%clk
0:01:40.4]} 18... Bd6 {[%clk 0:01:51.5]} 19. exd5 {[%clk 0:01:23.9]} 19... Nc4
{[%clk 0:01:46.6]} 20. Qc1 {[%clk 0:01:04.5]} 20... Bf4 {[%clk 0:01:34.2]} 21.
Ndxb5 {[%clk 0:00:48.9]} 21... axb5 {[%clk 0:01:32.1]} 22. Nxb5 {[%clk
0:00:49.8]} 22... Qe5 {[%clk 0:01:18.5]} 23. Bxc4 {[%clk 0:00:41.9]} 23... Bxc1
{[%clk 0:01:17.7]} 24. Kxc1 {[%clk 0:00:21.4]} 24... Rxc4 {[%clk 0:01:11.7]} 25.
dxe6 {[%clk 0:00:17.5]} 25... Qxb5 {[%clk 0:01:10.3]} 0-1

[Event "Early-Titled-Tuesday-Blitz-August-29-2023"]
[Site "Chess.com"]
[Date "2023.08.29"]
[Round "8"]
[White "laskakid"]
[Black "BillCoe"]
[Result "1-0"]
[WhiteElo "2166"]
[BlackElo "2119"]
[TimeControl "180+1"]
[EndTime "9:25:29 PDT"]
[Termination "laskakid won by resignation"]

1. d4 {[%clk 0:03:00.9]} 1... d5 {[%clk 0:02:59.7]} 2. c4 {[%clk 0:03:00]} 2...
e6 {[%clk 0:03:00.3]} 3. Nc3 {[%clk 0:02:59.8]} 3... Be7 {[%clk 0:03:00.5]} 4.
Nf3 {[%clk 0:02:56.9]} 4... Nf6 {[%clk 0:03:00.2]} 5. Bg5 {[%clk 0:02:56.6]}
5... O-O {[%clk 0:02:59.5]} 6. e3 {[%clk 0:02:56.7]} 6... h6 {[%clk 0:02:58.9]}
7. Bh4 {[%clk 0:02:52.7]} 7... b6 {[%clk 0:02:58.8]} 8. cxd5 {[%clk 0:02:48.8]}
8... exd5 {[%clk 0:02:59.5]} 9. Bd3 {[%clk 0:02:48.9]} 9... Bb7 {[%clk
0:02:58.9]} 10. O-O {[%clk 0:02:48.9]} 10... c5 {[%clk 0:02:58.1]} 11. Qc2
{[%clk 0:02:45.9]} 11... cxd4 {[%clk 0:02:57.4]} 12. Nxd4 {[%clk 0:02:41.8]}
12... Nc6 {[%clk 0:02:56.9]} 13. a3 {[%clk 0:02:21.6]} 13... Nxd4 {[%clk
0:02:55.6]} 14. exd4 {[%clk 0:02:21.2]} 14... Rc8 {[%clk 0:02:51.5]} 15. Rfe1
{[%clk 0:02:17.3]} 15... Re8 {[%clk 0:02:49.4]} 16. Bf5 {[%clk 0:02:11.1]} 16...
Rc7 {[%clk 0:02:41.4]} 17. Qa4 {[%clk 0:02:01]} 17... Bc6 {[%clk 0:02:31.1]} 18.
Qb3 {[%clk 0:01:58.6]} 18... Rb7 {[%clk 0:02:02.8]} 19. Rac1 {[%clk 0:01:55.3]}
19... a6 {[%clk 0:01:55.1]} 20. Qd1 {[%clk 0:01:25.4]} 20... Bd7 {[%clk
0:01:35]} 21. Bb1 {[%clk 0:01:21.9]} 21... Bg4 {[%clk 0:01:29.1]} 22. Qd3 {[%clk
0:01:18.9]} 22... Bh5 {[%clk 0:01:28]} 23. Bxf6 {[%clk 0:01:14.8]} 23... Bg6
{[%clk 0:01:27.2]} 24. Qxa6 {[%clk 0:01:07.4]} 24... Rd7 {[%clk 0:01:08.7]} 25.
Bxe7 {[%clk 0:01:01.3]} 25... Rdxe7 {[%clk 0:01:05.2]} 26. Rxe7 {[%clk
0:00:59.3]} 26... Rxe7 {[%clk 0:01:03.6]} 27. Bxg6 {[%clk 0:00:55.9]} 27... fxg6
{[%clk 0:01:04.3]} 28. h3 {[%clk 0:00:48]} 28... Qd6 {[%clk 0:01:01.8]} 29. Qa8+
{[%clk 0:00:44.9]} 29... Kh7 {[%clk 0:01:00.9]} 30. Qxd5 {[%clk 0:00:44.5]}
30... Qf4 {[%clk 0:01:00.1]} 31. Rf1 {[%clk 0:00:41.4]} 1-0

[Event "Early-Titled-Tuesday-Blitz-August-29-2023"]
[Site "Chess.com"]
[Date "2023.08.29"]
[Round "8"]
[White "Casper"]
[Black "Henryk_S"]
[Result "1-0"]
[WhiteElo "2395"]
[BlackElo "2118"]
[TimeControl "180+1"]
[EndTime "9:25:32 PDT"]
[Termination "Casper won on time"]

1. e4 {[%clk 0:02:59.4]} 1... e6 {[%clk 0:02:59.6]} 2. Bb5 {[%clk 0:02:57.2]}
2... a6 {[%clk 0:02:47.9]} 3. Ba4 {[%clk 0:02:53.8]} 3... c5 {[%clk 0:02:46.1]}
4. d4 {[%clk 0:02:52.8]} 4... b5 {[%clk 0:02:43]} 5. dxc5 {[%clk 0:02:51.1]}
5... bxa4 {[%clk 0:02:39.6]} 6. Be3 {[%clk 0:02:51.5]} 6... Qa5+ {[%clk
0:02:27.7]} 7. Nc3 {[%clk 0:02:50.1]} 7... Bxc5 {[%clk 0:02:23]} 8. Bd4 {[%clk
0:02:48.1]} 8... Bxd4 {[%clk 0:02:14.4]} 9. Qxd4 {[%clk 0:02:48.9]} 9... Nf6
{[%clk 0:02:12]} 10. O-O-O {[%clk 0:02:47.1]} 10... a3 {[%clk 0:01:54.8]} 11. e5
{[%clk 0:02:32.9]} 11... Nc6 {[%clk 0:01:53.5]} 12. Qd2 {[%clk 0:02:14.5]} 12...
axb2+ {[%clk 0:01:51.5]} 13. Kb1 {[%clk 0:02:13.5]} 13... Nxe5 {[%clk
0:01:43.7]} 14. Qg5 {[%clk 0:02:12.2]} 14... Qxc3 {[%clk 0:01:14.2]} 15. Qxg7
{[%clk 0:02:11.2]} 15... Ng6 {[%clk 0:01:13.2]} 16. Ne2 {[%clk 0:02:10]} 16...
Qe5 {[%clk 0:01:01.6]} 17. f4 {[%clk 0:02:06]} 17... Nh5 {[%clk 0:00:32]} 18.
Qh6 {[%clk 0:02:01.1]} 18... Qxe2 {[%clk 0:00:28.8]} 19. f5 {[%clk 0:02:00.5]}
19... Nhf4 {[%clk 0:00:20.5]} 20. fxg6 {[%clk 0:01:59.1]} 20... Nxg6 {[%clk
0:00:20]} 21. Rhe1 {[%clk 0:01:57.4]} 21... Qb5 {[%clk 0:00:15.7]} 22. Qg7
{[%clk 0:01:56.9]} 22... Rf8 {[%clk 0:00:15.5]} 23. h4 {[%clk 0:01:54.7]} 23...
Bb7 {[%clk 0:00:13.4]} 24. Qf6 {[%clk 0:01:53.1]} 24... Ne7 {[%clk 0:00:12.7]}
25. Re5 {[%clk 0:01:49]} 25... Bd5 {[%clk 0:00:11.1]} 26. Re3 {[%clk 0:01:49.5]}
26... Rc8 {[%clk 0:00:09.7]} 27. Ra3 {[%clk 0:01:39]} 27... Qc6 {[%clk
0:00:09.1]} 28. Rd2 {[%clk 0:01:35.7]} 28... Bc4 {[%clk 0:00:05.9]} 29. Qf2
{[%clk 0:01:29.9]} 29... d5 {[%clk 0:00:05.4]} 30. Rc3 {[%clk 0:01:29.6]} 30...
Qc5 {[%clk 0:00:02.8]} 31. Qg3 {[%clk 0:01:28.2]} 31... Qb5 {[%clk 0:00:01.7]}
32. Ra3 {[%clk 0:01:25.8]} 1-0

[Event "Early-Titled-Tuesday-Blitz-August-29-2023"]
[Site "Chess.com"]
[Date "2023.08.29"]
[Round "8"]
[White "19912131712118"]
[Black "cottage_cheese"]
[Result "1/2-1/2"]
[WhiteElo "2418"]
[BlackElo "2310"]
[TimeControl "180+1"]
[EndTime "9:25:33 PDT"]
[Termination "Game drawn by agreement"]

1. g3 {[%clk 0:03:00.9]} 1... d5 {[%clk 0:02:59]} 2. Bg2 {[%clk 0:03:01.8]} 2...
g6 {[%clk 0:02:56.3]} 3. d3 {[%clk 0:03:02.2]} 3... Bg7 {[%clk 0:02:56.6]} 4.
Nf3 {[%clk 0:03:02.8]} 4... e5 {[%clk 0:02:56.5]} 5. O-O {[%clk 0:03:03.4]} 5...
Ne7 {[%clk 0:02:55.4]} 6. c4 {[%clk 0:03:03.7]} 6... c6 {[%clk 0:02:54.8]} 7.
Nc3 {[%clk 0:03:03]} 7... O-O {[%clk 0:02:53.8]} 8. cxd5 {[%clk 0:03:03.3]} 8...
cxd5 {[%clk 0:02:53.2]} 9. e4 {[%clk 0:03:03.9]} 9... Nbc6 {[%clk 0:02:47]} 10.
Ng5 {[%clk 0:03:01.9]} 10... d4 {[%clk 0:02:17.6]} 11. Ne2 {[%clk 0:02:58.6]}
11... h6 {[%clk 0:02:17.1]} 12. Nh3 {[%clk 0:02:57.5]} 12... Be6 {[%clk
0:02:16.3]} 13. f4 {[%clk 0:02:56.3]} 13... Qd7 {[%clk 0:01:53]} 14. Nf2 {[%clk
0:02:55.2]} 14... f5 {[%clk 0:01:48]} 15. fxe5 {[%clk 0:02:54.7]} 15... Nxe5
{[%clk 0:01:40.1]} 16. Nf4 {[%clk 0:02:53.8]} 16... Bf7 {[%clk 0:01:28.9]} 17.
exf5 {[%clk 0:02:46.1]} 17... Nxf5 {[%clk 0:01:24.9]} 18. Ne4 {[%clk 0:02:41.4]}
18... Rad8 {[%clk 0:01:07.6]} 19. Nc5 {[%clk 0:02:38.9]} 19... Qb5 {[%clk
0:00:55.4]} 20. Nce6 {[%clk 0:02:32.2]} 20... Ne3 {[%clk 0:00:46.2]} 21. Bxe3
{[%clk 0:02:30.9]} 21... dxe3 {[%clk 0:00:47.1]} 22. Nxf8 {[%clk 0:02:28.4]}
22... Bxf8 {[%clk 0:00:37.3]} 23. a4 {[%clk 0:02:22.4]} 23... Qxb2 {[%clk
0:00:27.3]} 24. Rb1 {[%clk 0:02:20.2]} 24... Qd4 {[%clk 0:00:27.5]} 25. Qe2
{[%clk 0:02:16.3]} 25... Nxd3 {[%clk 0:00:17.6]} 26. Nxd3 {[%clk 0:02:15.1]}
26... Qxd3 {[%clk 0:00:18.5]} 27. Qxd3 {[%clk 0:02:12]} 27... Rxd3 {[%clk
0:00:19.4]} 28. Rxb7 {[%clk 0:02:11.2]} 28... Bc5 {[%clk 0:00:16.1]} 29. Rbxf7
{[%clk 0:01:48.9]} 29... e2+ {[%clk 0:00:15]} 30. Kh1 {[%clk 0:01:48]} 30... Rd1
{[%clk 0:00:11.9]} 31. Rf3 {[%clk 0:01:40.3]} 31... exf1=Q+ {[%clk 0:00:07.8]}
32. Rxf1 {[%clk 0:01:39.9]} 32... Rxf1+ {[%clk 0:00:07.9]} 33. Bxf1 {[%clk
0:01:40.8]} 33... a5 {[%clk 0:00:07.9]} 34. Bc4+ {[%clk 0:01:40.8]} 34... Kg7
{[%clk 0:00:07.9]} 35. Kg2 {[%clk 0:01:41.7]} 35... g5 {[%clk 0:00:07.9]} 36.
Kf3 {[%clk 0:01:41.6]} 36... Bb4 {[%clk 0:00:06.5]} 37. Kg4 {[%clk 0:01:41]}
37... Bc3 {[%clk 0:00:06.8]} 38. Kf5 {[%clk 0:01:41.3]} 38... Bb4 {[%clk
0:00:07.2]} 39. h3 {[%clk 0:01:41.9]} 39... Bc3 {[%clk 0:00:07.6]} 40. g4 {[%clk
0:01:42.8]} 40... Bb4 {[%clk 0:00:08]} 41. Bd5 {[%clk 0:01:43]} 41... Bc3 {[%clk
0:00:08.4]} 1/2-1/2